fUSD/lending_fUSD_20241223
["ID","MTS","AMOUNT","RATE_DAILY","PERIOD"]
[346458129,1734983476378,-7733.77,0.00015067,2]
[346458130,1734983476388,-37490.71,0.00015067,2]
[346458131,1734983476398,-4045.76,0.00015067,2]
[346458132,1734983476407,-3336.73,0.00015067,2]
[346458133,1734983476416,-1980.4,0.00015067,2]
[346458134,1734983476426,-5333.98,0.00015067,2]
[346458135,1734983476435,-27080.99,0.00015067,2]
[346458136,1734983476444,-1435.78,0.00015067,2]
[346458137,1734983476453,-3942.55,0.00015067,2]
[346458138,1734983476463,-3489.33,0.00015067,2]
[346458139,1734983476472,-2639.66,0.00015067,2]
[346458140,1734983476482,-5019.99,0.00015067,2]
[346458141,1734983476491,-500.0,0.00015067,2]
[346458142,1734983476501,-1258.46,0.00015067,2]
[346458143,1734983476511,-3190.49,0.00015067,2]
[346458144,1734983476521,-3377.35,0.00015067,2]
[346458145,1734983476531,-757.99,0.00015068,2]
[346458146,1734983476541,-1506.47,0.00015068,2]
[346458147,1734983476551,-500.0,0.00015068,2]
[346458148,1734983476561,-622.17,0.00015068,2]
[346458149,1734983476570,-500.0,0.00015068,2]
[346458150,1734983476580,-745.34,0.00015068,2]
[346458151,1734983476590,-1355.56,0.00015068,2]
[346458152,1734983476599,-500.0,0.00015068,2]
[346458153,1734983476609,-500.0,0.00015068,2]
[346458154,1734983476619,-943.39,0.00015068,2]
[346458155,1734983476628,-500.0,0.00015068,2]
[346458156,1734983476638,-502.55293709,0.00015068,2]
[346458157,1734983476647,-500.0,0.00015068,2]
[346458158,1734983476657,-500.0,0.00015068,2]
[346458159,1734983476666,-500.0,0.00015068,2]
[346458160,1734983476676,-500.0,0.00015068,2]
[346458161,1734983476685,-500.0,0.00015068,2]
[346458162,1734983476694,-500.0,0.00015068,2]
[346458163,1734983476704,-1112.52,0.00015068,2]
[346458164,1734983476713,-500.0,0.00015068,2]
[346458165,1734983476723,-500.0,0.00015068,2]
[346458166,1734983476732,-500.0,0.00015068,2]
[346458167,1734983476742,-790.69,0.00015068,2]
[346458168,1734983476751,-500.0,0.00015068,2]
[346458169,1734983476761,-855.0,0.00015068,2]
[346458170,1734983476772,-500.0,0.00015068,2]
[346458171,1734983476781,-876.69,0.00015068,2]
[346458172,1734983476790,-562.06,0.00015068,2]
[346458173,1734983476800,-500.0,0.00015068,2]
[346458174,1734983476809,-847.08,0.00015068,2]
[346458175,1734983476819,-867.59,0.00015068,2]
[346458176,1734983476829,-500.0,0.00015068,2]
[346458177,1734983476838,-895.5,0.00015068,2]
[346458178,1734983476847,-500.0,0.00015068,2]
[346458179,1734983476857,-500.0,0.00015068,2]
[346458180,1734983476866,-500.0,0.00015068,2]
[346458181,1734983476875,-1304.71,0.00015068,2]
[346458182,1734983476885,-500.0,0.00015068,2]
[346458183,1734983476894,-1693.88,0.00015068,2]
[346458184,1734983476904,-500.0,0.00015068,2]
[346458185,1734983476913,-500.0,0.00015068,2]
[346458186,1734983476922,-536.47,0.00015068,2]
[346458187,1734983476932,-500.0,0.00015068,2]
[346458188,1734983476941,-500.0,0.00015068,2]
[346458189,1734983476950,-500.0,0.00015068,2]
[346458190,1734983476959,-704.56,0.00015068,2]
[346458191,1734983476969,-1063.61,0.00015068,2]
[346458192,1734983476979,-729.4,0.00015068,2]
[346458193,1734983476988,-500.0,0.00015068,2]
[346458194,1734983476997,-500.0,0.00015068,2]
[346458195,1734983477007,-500.0,0.00015068,2]
[346458196,1734983477016,-1288.05,0.00015068,2]
[346458197,1734983477027,-500.0,0.00015068,2]
[346458198,1734983477037,-500.0,0.00015068,2]
[346458199,1734983477046,-876.88,0.00015068,2]
[346458200,1734983477056,-500.0,0.00015068,2]
[346458201,1734983477065,-500.0,0.00015068,2]
[346458202,1734983477075,-500.0,0.00015068,2]
[346458203,1734983477084,-500.0,0.00015068,2]
[346458204,1734983477094,-500.0,0.00015068,2]
[346458205,1734983477103,-627.92,0.00015068,2]
[346458206,1734983477112,-837.11,0.00015068,2]
[346458207,1734983477122,-500.0,0.00015068,2]
[346458208,1734983477131,-500.0,0.00015068,2]
[346458209,1734983477140,-715.29,0.00015068,2]
[346458210,1734983477150,-500.0,0.00015068,2]
[346458211,1734983477159,-500.0,0.00015068,2]
[346458212,1734983477169,-503.14,0.00015068,2]
[346458213,1734983477178,-500.0,0.00015068,2]
[346458214,1734983477188,-693.1,0.00015068,2]
[346458215,1734983477197,-1639.04,0.00015068,2]
[346458216,1734983477206,-500.0,0.00015068,2]
[346458217,1734983477216,-500.0,0.00015068,2]
[346458218,1734983477234,-909.84,0.00015068,2]
[346458219,1734983477244,-155.940262,0.00015068,2]
[346458220,1734983477254,-1025.51,0.00015068,2]
[346458221,1734983477265,-154.072404,0.00015068,2]
[346458222,1734983477276,-2789.796411,0.00015068,2]
[346458223,1734983477285,-500.0,0.00015068,2]
[346458224,1734983477295,-207.90237527,0.00015068,2]
[346458225,1734983477306,-3350.644444,0.00015068,2]
[346458226,1734983477316,-1267.55,0.00015068,2]
[346458227,1734983477325,-500.0,0.00015068,2]
[346458228,1734983477335,-500.0,0.00015068,2]
[346458229,1734983477345,-507.23654545,0.00015068,2]
[346458230,1734983477355,-955.34,0.00015068,2]
[346458231,1734983477364,-500.0,0.00015068,2]
[346458232,1734983477374,-500.0,0.00015068,2]
[346458233,1734983477611,-1230.42,0.00015068,2]
[346458234,1734983477625,-500.0,0.00015068,2]
[346458235,1734983477634,-1124.42,0.00015068,2]
[346458236,1734983477644,-402.73278071,0.00015068,2]
[346458237,1734983477653,-500.0,0.00015068,2]
[346458238,1734983477663,-649.71,0.00015068,2]
[346458239,1734983477672,-500.0,0.00015068,2]
[346458240,1734983477681,-506.60454536,0.00015068,2]
[346458241,1734983477691,-500.0,0.00015068,2]
[346458242,1734983477699,-713.56,0.00015068,2]
[346458243,1734983477709,-500.0,0.00015068,2]
[346458244,1734983477718,-500.0,0.00015068,2]
[346458245,1734983477727,-500.0,0.00015068,2]
[346458246,1734983477736,-513.94953945,0.00015068,2]
[346458247,1734983477745,-1323.13,0.00015068,2]
[346458248,1734983477755,-500.0,0.00015068,2]
[346458249,1734983477764,-958.59,0.00015068,2]
[346458250,1734983477775,-938.95,0.00015068,2]
[346458251,1734983477784,-1909.64,0.00015068,2]
[346458252,1734983477794,-1467.51,0.00015068,2]
[346458253,1734983477803,-958.62,0.00015068,2]
[346458254,1734983477813,-500.0,0.00015068,2]
[346458255,1734983477823,-563.5,0.00015068,2]
[346458256,1734983477832,-1353.65,0.00015068,2]
[346458257,1734983477841,-743.02,0.00015068,2]
[346458258,1734983477851,-500.0,0.00015068,2]
[346458259,1734983477860,-2120.2,0.00015068,2]
[346458260,1734983477870,-768.8,0.00015068,2]
[346458261,1734983477879,-999.63,0.00015068,2]
[346458262,1734983477888,-500.0,0.00015068,2]
[346458263,1734983477898,-730.43,0.00015068,2]
[346458264,1734983477908,-1571.45,0.00015068,2]
[346458265,1734983477919,-712.07,0.00015068,2]
[346458266,1734983477928,-500.0,0.00015068,2]
[346458267,1734983477938,-502.82238615,0.00015068,2]
[346458268,1734983477947,-1386.96,0.00015068,2]
[346458269,1734983477957,-2428.76,0.00015068,2]
[346458270,1734983477966,-500.0,0.00015068,2]
[346458271,1734983477976,-1431.08,0.00015068,2]
[346458272,1734983477985,-500.0,0.00015068,2]
[346458273,1734983477994,-500.0,0.00015068,2]
[346458274,1734983478004,-500.0,0.00015068,2]
[346458275,1734983478013,-500.0,0.00015068,2]
[346458276,1734983478026,-2535.1,0.00015068,2]
[346458277,1734983478036,-590.71,0.00015068,2]
[346458278,1734983478046,-500.0,0.00015068,2]
[346458279,1734983478056,-500.0,0.00015068,2]
[346458280,1734983478066,-500.0,0.00015068,2]
[346458281,1734983478076,-500.0,0.00015068,2]
[346458282,1734983478086,-500.0,0.00015068,2]
[346458283,1734983478096,-500.0,0.00015068,2]
[346458284,1734983478106,-500.0,0.00015068,2]
[346458285,1734983478116,-647.68,0.00015068,2]
[346458286,1734983478126,-2179.1,0.00015068,2]
[346458287,1734983478135,-584.53385043,0.00015068,2]
[346458288,1734983478146,-1741.94,0.00015068,2]
[346458289,1734983478158,-503.57,0.00015068,2]
[346458290,1734983478167,-533.93,0.00015068,2]
[346458291,1734983478176,-500.0,0.00015068,2]
[346458292,1734983478186,-506.11,0.00015068,2]
[346458293,1734983478195,-500.0,0.00015068,2]
[346458294,1734983478204,-2546.21,0.00015068,2]
[346458295,1734983478214,-500.0,0.00015068,2]
[346458296,1734983478223,-500.0,0.00015068,2]
[346458297,1734983478236,-2384.93,0.00015068,2]
[346458298,1734983478246,-500.0,0.00015068,2]
[346458299,1734983478255,-500.0,0.00015068,2]
[346458300,1734983478264,-1472.51,0.00015068,2]
[346458301,1734983478275,-739.46,0.00015068,2]
[346458302,1734983478285,-2040.74,0.00015068,2]
[346458303,1734983478295,-500.0,0.00015068,2]
[346458304,1734983478304,-500.0,0.00015068,2]
[346458305,1734983478314,-2108.54,0.00015068,2]
[346458306,1734983478323,-500.0,0.00015068,2]
[346458307,1734983478333,-207.96,0.00015068,2]
[346458308,1734983478342,-1103.36,0.00015068,2]
[346458309,1734983478351,-603.59,0.00015068,2]
[346458310,1734983478360,-500.0,0.00015068,2]
[346458311,1734983478369,-1314.39,0.00015068,2]
[346458312,1734983478379,-681.79,0.00015068,2]
[346458313,1734983478388,-500.0,0.00015068,2]
[346458314,1734983478398,-1474.25,0.00015068,2]
[346458315,1734983478407,-569.96,0.00015068,2]
[346458316,1734983478416,-500.0,0.00015068,2]
[346458317,1734983478425,-500.0,0.00015068,2]
[346458318,1734983478434,-2526.97,0.00015068,2]
[346458319,1734983478443,-500.0,0.00015068,2]
[346458320,1734983478452,-588.45,0.00015068,2]
[346458321,1734983478462,-562.03,0.00015068,2]
[346458322,1734983478471,-500.0,0.00015068,2]
[346458323,1734983478480,-2097.31,0.00015068,2]
[346458324,1734983478490,-500.0,0.00015068,2]
[346458325,1734983478499,-500.0,0.00015068,2]
[346458326,1734983478508,-2272.82,0.00015068,2]
[346458327,1734983478518,-1399.67,0.00015068,2]
[346458328,1734983478528,-1081.13,0.00015068,2]
[346458329,1734983478538,-952.35,0.00015068,2]
[346458330,1734983478547,-766.53,0.00015068,2]
[346458331,1734983478557,-500.0,0.00015068,2]
[346458332,1734983478567,-971.56,0.00015068,2]
[346458333,1734983478577,-1033.9,0.00015068,2]
[346458334,1734983478586,-908.96,0.00015068,2]
[346458335,1734983478596,-1920.11,0.00015068,2]
[346458336,1734983478605,-500.0,0.00015068,2]
[346458337,1734983478614,-500.0,0.00015068,2]
[346458338,1734983478623,-500.0,0.00015068,2]
[346458339,1734983478632,-500.0,0.00015068,2]
[346458340,1734983478641,-500.0,0.00015068,2]
[346458341,1734983478651,-1220.95,0.00015068,2]
[346458342,1734983478660,-500.0,0.00015068,2]
[346458343,1734983478669,-500.0,0.00015068,2]
[346458344,1734983478679,-549.68,0.00015068,2]
[346458345,1734983478688,-2597.65,0.00015068,2]
[346458346,1734983478697,-500.0,0.00015068,2]
[346458347,1734983478706,-500.0,0.00015068,2]
[346458348,1734983478715,-1679.77,0.00015068,2]
[346458349,1734983478725,-500.0,0.00015068,2]
[346458350,1734983478734,-500.0,0.00015068,2]
[346458351,1734983478743,-351.63695495,0.00015068,2]
[346458352,1734983478752,-500.0,0.00015068,2]
[346458353,1734983478762,-2479.89,0.00015068,2]
[346458354,1734983478771,-500.0,0.00015068,2]
[346458355,1734983478782,-500.0,0.00015068,2]
[346458356,1734983478792,-500.0,0.00015068,2]
[346458357,1734983478802,-884.3,0.00015068,2]
[346458358,1734983478812,-533.99,0.00015068,2]
[346458359,1734983478821,-1337.77,0.00015068,2]
[346458360,1734983478831,-1234.01,0.00015068,2]
[346458361,1734983478840,-500.0,0.00015068,2]
[346458362,1734983478849,-500.0,0.00015068,2]
[346458363,1734983478859,-1693.27,0.00015068,2]
[346458364,1734983478869,-500.0,0.00015068,2]
[346458365,1734983478879,-1639.66,0.00015068,2]
[346458366,1734983478888,-500.0,0.00015068,2]
[346458367,1734983478898,-1258.33,0.00015068,2]
[346458368,1734983478908,-500.0,0.00015068,2]
[346458369,1734983478918,-865.68,0.00015068,2]
[346458370,1734983478927,-500.0,0.00015068,2]
[346458371,1734983478936,-500.0,0.00015068,2]
[346458372,1734983478945,-1242.29,0.00015068,2]
[346458373,1734983478954,-500.0,0.00015068,2]
[346458374,1734983478964,-558.44,0.00015068,2]
[346458375,1734983478973,-1883.5,0.00015068,2]
[346458376,1734983478982,-500.0,0.00015068,2]
[346458377,1734983478992,-500.0,0.00015068,2]
[346458378,1734983479001,-500.0,0.00015068,2]
[346458379,1734983479010,-500.0,0.00015068,2]
[346458380,1734983479020,-500.0,0.00015068,2]
[346458381,1734983479030,-1457.31,0.00015068,2]
[346458382,1734983479039,-500.0,0.00015068,2]
[346458383,1734983479048,-500.0,0.00015068,2]
[346458384,1734983479057,-506.29008162,0.00015068,2]
[346458385,1734983479066,-744.66,0.00015068,2]
[346458386,1734983479075,-614.05,0.00015068,2]
[346458387,1734983479084,-500.0,0.00015068,2]
[346458388,1734983479093,-505.95,0.00015068,2]
[346458389,1734983479103,-500.0,0.00015068,2]
[346458390,1734983479111,-1106.29,0.00015068,2]
[346458391,1734983479120,-825.99,0.00015068,2]
[346458392,1734983479129,-614.73,0.00015068,2]
[346458393,1734983479139,-598.56,0.00015068,2]
[346458394,1734983479148,-2428.41,0.00015068,2]
[346458395,1734983479157,-500.0,0.00015068,2]
[346458396,1734983479166,-647.89,0.00015068,2]
[346458397,1734983479175,-555.89,0.00015068,2]
[346458398,1734983479186,-1850.68,0.00015068,2]
[346458399,1734983479195,-733.51,0.00015068,2]
[346458400,1734983479205,-1395.61,0.00015068,2]
[346458401,1734983479216,-500.0,0.00015068,2]
[346458402,1734983479230,-500.0,0.00015068,2]
[346458403,1734983479240,-500.0,0.00015068,2]
[346458404,1734983479249,-1898.84,0.00015068,2]
[346458405,1734983479258,-1190.22,0.00015068,2]
[346458406,1734983479269,-520.67,0.00015068,2]
[346458407,1734983479280,-659.78,0.00015068,2]
[346458408,1734983479290,-500.0,0.00015068,2]
[346458409,1734983479300,-706.12,0.00015068,2]
[346458410,1734983479309,-1161.74,0.00015068,2]
[346458411,1734983479319,-792.15,0.00015068,2]
[346458412,1734983479329,-500.0,0.00015068,2]
[346458413,1734983479338,-1198.3,0.00015068,2]
[346458414,1734983479347,-1131.14,0.00015068,2]
[346458415,1734983479358,-500.0,0.00015068,2]
[346458416,1734983479367,-500.0,0.00015068,2]
[346458417,1734983479378,-1629.86,0.00015068,2]
[346458418,1734983479387,-977.33,0.00015068,2]
[346458419,1734983479397,-500.0,0.00015068,2]
[346458420,1734983479407,-548.69,0.00015068,2]
[346458421,1734983479418,-500.0,0.00015068,2]
[346458422,1734983479428,-500.0,0.00015068,2]
[346458423,1734983479438,-500.0,0.00015068,2]
[346458424,1734983479447,-628.27,0.00015068,2]
[346458425,1734983479457,-599.12,0.00015068,2]
[346458426,1734983479466,-456.42020928,0.00015068,2]
[346458427,1734983479476,-500.0,0.00015068,2]
[346458428,1734983479486,-1391.9,0.00015068,2]
[346458429,1734983479495,-2005.44,0.00015068,2]
[346458430,1734983479504,-500.0,0.00015068,2]
[346458431,1734983479514,-500.0,0.00015068,2]
[346458432,1734983479524,-500.0,0.00015068,2]
[346458433,1734983479534,-1352.65,0.00015068,2]
[346458434,1734983479543,-2203.91,0.00015068,2]
[346458435,1734983479553,-929.9,0.00015068,2]
[346458436,1734983479563,-1256.82,0.00015068,2]
[346458437,1734983479572,-582.13,0.00015068,2]
[346458438,1734983479582,-500.0,0.00015068,2]
[346458439,1734983479591,-532.57359219,0.00015068,2]
[346458440,1734983479600,-1626.83,0.00015068,2]
[346458441,1734983479610,-821.99,0.00015068,2]
[346458442,1734983479620,-500.0,0.00015068,2]
[346458443,1734983479630,-500.0,0.00015068,2]
[346458444,1734983479639,-500.0,0.00015068,2]
[346458445,1734983479649,-1342.26,0.00015068,2]
[346458446,1734983479658,-6402.42,0.00015068,2]
[346458447,1734983479668,-926.8,0.00015068,2]
[346458448,1734983479677,-1227.45,0.00015068,2]
[346458449,1734983479687,-500.0,0.00015068,2]
[346458450,1734983479697,-1859.49,0.00015068,2]
[346458451,1734983479706,-500.0,0.00015068,2]
[346458452,1734983479716,-614.72,0.00015068,2]
[346458453,1734983479725,-1326.67,0.00015068,2]
[346458454,1734983479735,-500.0,0.00015068,2]
[346458455,1734983479744,-502.43486742,0.00015068,2]
[346458456,1734983479754,-500.0,0.00015068,2]
[346458457,1734983479763,-596.52,0.00015068,2]
[346458458,1734983479774,-1015.69,0.00015068,2]
[346458459,1734983479784,-500.0,0.00015068,2]
[346458460,1734983479794,-500.0,0.00015068,2]
[346458461,1734983479803,-1210.05,0.00015068,2]
[346458462,1734983479813,-1848.4,0.00015068,2]
[346458463,1734983479822,-574.22,0.00015068,2]
[346458464,1734983479831,-1285.29,0.00015068,2]
[346458465,1734983479843,-500.0,0.00015068,2]
[346458466,1734983479853,-500.0,0.00015068,2]
[346458467,1734983479862,-500.0,0.00015068,2]
[346458468,1734983479871,-500.0,0.00015068,2]
[346458469,1734983479881,-2751.45,0.00015068,2]
[346458470,1734983479890,-500.0,0.00015068,2]
[346458471,1734983479991,-1128.87,0.00015068,2]
[346458472,1734983480001,-500.0,0.00015068,2]
[346458473,1734983480011,-683.58,0.00015068,2]
[346458474,1734983480020,-6056.43,0.00015068,2]
[346458475,1734983480031,-500.0,0.00015068,2]
[346458476,1734983480040,-1154.43,0.00015068,2]
[346458477,1734983480051,-500.0,0.00015068,2]
[346458478,1734983480060,-500.0,0.00015068,2]
[346458479,1734983480070,-11553.88,0.00015068,2]
[346458480,1734983480079,-3461.58,0.00015068,2]
[346458481,1734983480088,-2563.93,0.00015068,2]
[346458482,1734983480098,-1292.7,0.00015068,2]
[346458483,1734983480107,-500.0,0.00015068,2]
[346458484,1734983480116,-2781.72,0.00015068,2]
[346458485,1734983480127,-500.0,0.00015068,2]
[346458486,1734983480136,-1045.69,0.00015068,2]
[346458487,1734983480146,-500.0,0.00015068,2]
[346458488,1734983480156,-554.57,0.00015068,2]
[346458489,1734983480165,-1274.89,0.00015068,2]
[346458490,1734983480175,-1146.69,0.00015068,2]
[346458491,1734983480184,-500.0,0.00015068,2]
[346458492,1734983480193,-948.38,0.00015068,2]
[346458493,1734983480203,-500.0,0.00015068,2]
[346458494,1734983480211,-500.0,0.00015068,2]
[346458495,1734983480222,-1729.1,0.00015068,2]
[346458496,1734983480232,-1060.71,0.00015068,2]
[346458497,1734983480244,-15575.1,0.00015068,2]
[346458498,1734983480254,-500.0,0.00015068,2]
[346458499,1734983480263,-1437.23,0.00015068,2]
[346458500,1734983480272,-3891.1,0.00015068,2]
[346458501,1734983480284,-2142.93,0.00015068,2]
[346458502,1734983480293,-920.78,0.00015068,2]
[346458503,1734983480303,-736.03,0.00015068,2]
[346458504,1734983480313,-1226.17,0.00015068,2]
[346458505,1734983480322,-500.0,0.00015068,2]
[346458506,1734983480331,-500.0,0.00015068,2]
[346458507,1734983480340,-1074.33,0.00015068,2]
[346458508,1734983480349,-500.0,0.00015068,2]
[346458509,1734983480358,-6302.87,0.00015068,2]
[346458510,1734983480367,-3579.93,0.00015068,2]
[346458511,1734983480376,-678.95,0.00015068,2]
[346458512,1734983480386,-1468.11,0.00015068,2]
[346458513,1734983480395,-500.0,0.00015068,2]
[346458514,1734983480404,-695.77,0.00015068,2]
[346458515,1734983480414,-7214.02,0.00015068,2]
[346458516,1734983480424,-500.0,0.00015068,2]
[346458517,1734983480433,-6586.38,0.00015068,2]
[346458518,1734983480442,-500.0,0.00015068,2]
[346458519,1734983480452,-1410.03,0.00015068,2]
[346458520,1734983480461,-500.0,0.00015068,2]
[346458521,1734983480470,-2688.66,0.00015068,2]
[346458522,1734983480481,-1472.35,0.00015068,2]
[346458523,1734983480490,-500.0,0.00015068,2]
[346458524,1734983480499,-1255.72,0.00015068,2]
[346458525,1734983480509,-1233.64,0.00015068,2]
[346458526,1734983480518,-701.82,0.00015068,2]
[346458527,1734983480529,-5090.58,0.00015068,2]
[346458528,1734983480539,-500.0,0.00015068,2]
[346458529,1734983480548,-500.0,0.00015068,2]
[346458530,1734983480557,-3635.2,0.00015068,2]
[346458531,1734983480566,-869.32,0.00015068,2]
[346458532,1734983480575,-1046.58,0.00015068,2]
[346458533,1734983480583,-627.84,0.00015068,2]
[346458534,1734983480592,-4671.0,0.00015068,2]
[346458535,1734983480601,-4686.61,0.00015068,2]
[346458536,1734983480610,-500.0,0.00015068,2]
[346458537,1734983480618,-630.7,0.00015068,2]
[346458538,1734983480628,-820.95,0.00015068,2]
[346458539,1734983480637,-1836.15,0.00015068,2]
[346458540,1734983480646,-1130.83,0.00015068,2]
[346458541,1734983480656,-2323.91,0.00015068,2]
[346458542,1734983480665,-516.26,0.00015068,2]
[346458543,1734983480675,-2995.53,0.00015068,2]
[346458544,1734983480684,-500.0,0.00015068,2]
[346458545,1734983480693,-500.0,0.00015068,2]
[346458546,1734983480701,-1123.17,0.00015068,2]
[346458547,1734983480710,-1155.82,0.00015068,2]
[346458548,1734983480719,-2403.14,0.00015068,2]
[346458549,1734983480728,-810.25,0.00015068,2]
[346458550,1734983480737,-902.0,0.00015068,2]
[346458551,1734983480746,-1314.92,0.00015068,2]
[346458552,1734983480755,-500.0,0.00015068,2]
[346458553,1734983480764,-500.0,0.00015068,2]
[346458554,1734983480774,-5525.58,0.00015068,2]
[346458555,1734983480783,-512.09,0.00015068,2]
[346458556,1734983480793,-500.0,0.00015068,2]
[346458557,1734983480802,-500.0,0.00015068,2]
[346458558,1734983480811,-666.71,0.00015068,2]
[346458559,1734983480821,-2455.92,0.00015068,2]
[346458560,1734983480831,-872.99,0.00015068,2]
[346458561,1734983480839,-4918.98,0.00015068,2]
[346458562,1734983480849,-500.0,0.00015068,2]
[346458563,1734983480858,-500.0,0.00015068,2]
[346458564,1734983480867,-500.0,0.00015068,2]
[346458565,1734983480878,-500.0,0.00015068,2]
[346458566,1734983480887,-4475.48,0.00015068,2]
[346458567,1734983480897,-579.5,0.00015068,2]
[346458568,1734983480905,-676.19,0.00015068,2]
[346458569,1734983480915,-553.21,0.00015068,2]
[346458570,1734983480924,-8415.59,0.00015068,2]
[346458571,1734983480934,-792.97,0.00015068,2]
[346458572,1734983480943,-500.0,0.00015068,2]
[346458573,1734983480952,-3919.46,0.00015068,2]
[346458574,1734983480961,-3391.19,0.00015068,2]
[346458575,1734983480970,-636.38,0.00015068,2]
[346458576,1734983480979,-834.47,0.00015068,2]
[346458577,1734983480988,-2742.37,0.00015068,2]
[346458578,1734983480997,-1027.57,0.00015068,2]
[346458579,1734983481007,-500.0,0.00015068,2]
[346458580,1734983481016,-847.46,0.00015068,2]
[346458581,1734983481027,-9012.3,0.00015068,2]
[346458582,1734983481036,-555.96,0.00015068,2]
[346458583,1734983481045,-500.0,0.00015068,2]
[346458584,1734983481054,-500.0,0.00015068,2]
[346458585,1734983481063,-500.0,0.00015068,2]
[346458586,1734983481073,-500.0,0.00015068,2]
[346458587,1734983481082,-5252.8,0.00015068,2]
[346458588,1734983481092,-6315.37,0.00015068,2]
[346458589,1734983481102,-4008.04,0.00015068,2]
[346458590,1734983481112,-7027.53,0.00015068,2]
[346458591,1734983481121,-500.0,0.00015068,2]
[346458592,1734983481130,-485.82576518,0.00015068,2]
[346458593,1734983481140,-1696.77,0.00015068,2]
[346458594,1734983481149,-500.0,0.00015068,2]
[346458595,1734983481158,-500.0,0.00015068,2]
[346458596,1734983481167,-500.0,0.00015068,2]
[346458597,1734983481176,-500.0,0.00015068,2]
[346458598,1734983481185,-500.0,0.00015068,2]
[346458599,1734983481195,-500.0,0.00015068,2]
[346458600,1734983481205,-2000.3,0.00015068,2]
[346458601,1734983481214,-3154.52,0.00015068,2]
[346458602,1734983481227,-5968.56,0.00015068,2]
[346458603,1734983481236,-14873.62,0.00015068,2]
[346458604,1734983481245,-2211.27,0.00015068,2]
[346458605,1734983481254,-500.0,0.00015068,2]
[346458606,1734983481264,-1066.69,0.00015068,2]
[346458607,1734983481273,-500.0,0.00015068,2]
[346458608,1734983481284,-500.0,0.00015068,2]
[346458609,1734983481294,-500.0,0.00015068,2]
[346458610,1734983481303,-500.0,0.00015068,2]
[346458611,1734983481312,-659.11,0.00015068,2]
[346458612,1734983481321,-500.0,0.00015068,2]
[346458613,1734983481330,-564.57,0.00015068,2]
[346458614,1734983481339,-3866.62,0.00015068,2]
[346458615,1734983481348,-783.78,0.00015068,2]
[346458616,1734983481357,-2330.64,0.00015068,2]
[346458617,1734983481366,-18570.76,0.00015068,2]
[346458618,1734983481375,-500.0,0.00015068,2]
[346458619,1734983481384,-508.97,0.00015068,2]
[346458620,1734983481394,-20926.66,0.00015068,2]
[346458621,1734983481403,-829.84,0.00015068,2]
[346458622,1734983481412,-500.0,0.00015068,2]
[346458623,1734983481421,-500.0,0.00015068,2]
[346458624,1734983481430,-3757.16,0.00015068,2]
[346458625,1734983481439,-607.52,0.00015068,2]
[346458626,1734983481447,-7925.4,0.00015068,2]
[346458627,1734983481456,-2302.97,0.00015068,2]
[346458628,1734983481465,-500.0,0.00015068,2]